Workbook

Sheet Fasi 1-5
B1: Fase 1 | C1: Piano Investimenti | D1: Importo | E1: Ammortamenti Annui
C2: Brevetti | D2: 500000 | E2: =+D2/20 -> 25000
C3: Impianti | D3: 1000000 | E3: =+D3/10 -> 100000
C4: Attrezzature | D4: 800000 | E4: =+D4/12 -> 66666.66667
C5: Totale | D5: =SUM(D2:D4) -> 2300000 | E5: =SUM(E2:E4) -> 191666.6667
D6: Rata | E6: Quota Capitale | F6: Interessi
C7: Finanziamento (7 anni, 5%) | D7: =+PMT(5%,7,D5) -> -397485.5824 | E7: =+D7-F7 -> -282485.5824 | F7: =+IPMT(5%,1,7,D5) -> -115000
F8: =+IPMT(5%,1,7,D5) -> -115000
B9: Fase 2 | C9: Costi Fissi Industriali | D9: Importo
C10: Costo del lavoro | D10: 200000
C11: Utenze | D11: 10000
C12: Manutenzioni | D12: 50000
C13: Assicurazioni | D13: 25000
C14: Consulenze | D14: 30000
C15: Totale | D15: =SUM(D10:D14) -> 315000
B17: Fase 3 | C17: Margine sulle Vendite | D17: Importo | E17: Incidenza sul prezzo di vendita
C18: Ricavo per Metro Tessuto Greggio | D18: 3.5
C19: Costo del Filato | D19: 2.5 | E19: =+D19/D18 -> 0.7142857143
C20: Costo dell'energia | D20: 0.3 | E20: =+D20/D18 -> 0.08571428571
C21: Provvigioni | D21: 0.28 | E21: =+D21/D18 -> 0.08
C22: Imballaggi | D22: 0.1 | E22: =+D22/D18 -> 0.02857142857
C23: Tot. Costi Variabili | D23: =SUM(D19:D22) -> 3.18 | E23: =+D23/D18 -> 0.9085714286
C24: M.d.C. Unitario | D24: =+D18-D23 -> 0.32 | E24: =+D24/D18 -> 0.09142857143
B27: Fase 3b-3c | C27: Margine di Produzione | E27: Incidenza sul costo di produzione | F27: Incidenza su magazzino M.P.
C28: Costo Industriale pieno per Metro T.G. | D28: 3.15 | F28: Incidenza su 100%
C29: =+C19 -> Costo del Filato | D29: =+D19 -> 2.5 | E29: =+D29/$D$28 -> 0.7936507937 | F29: =+E29/(E29+E31) -> 0.9615384615
C30: =+C20 -> Costo dell'energia | D30: =+D20 -> 0.3 | E30: =+D30/$D$28 -> 0.09523809524 | F30: 0
C31: =+C22 -> Imballaggi | D31: =+D22 -> 0.1 | E31: =+D31/$D$28 -> 0.03174603175 | F31: =+E31/(E31+E29) -> 0.03846153846
C32: =+C23 -> Tot. Costi Variabili | D32: =SUM(D29:D31) -> 2.9 | E32: =+D32/D28 -> 0.9206349206
C33: M.d.P. Unitario | D33: =+D28-D32 -> 0.25 | E33: =+D33/D28 -> 0.07936507937 | F33: =SUM(F29:F31) -> 1
B35: Ponderazione Margini per calcolo Valore della Produzione di Break Even | D35: PESI | E35: %
C36: Peso Vendite | D36: 0.8 | E36: =+(D46-D53)/D46 -> 0.924142868 | F36: =+D36-E36 -> -0.124142868
C37: Peso Delta Magazzino Prodotto Finito | D37: =1-D36 -> 0.2
C38: M.d.c. Ponderato | D38: =+E24*D36+E33*D37 -> 0.08901587302
B40: Fase 4 | C40: Costi Fissi Operativi | D40: =+D15 -> 315000
B41: Stima primo break even | C41: Finanziamento Piano Investimenti | D41: =-D7 -> 397485.5824
C42: Interessi Passivi a breve (Fase 7b) | E42: =+'Fase 7b'!C27 -> 0 | F42: =+D42-E42 -> 0
B44: Uscite Finanziarie Fisse | C44: Somma Flussi in Uscita | D44: =SUM(D40:D43) -> 712485.5824
B46: Valore della Produzione | C46: Break Even Finanziario | D46: =+D44/D38 -> 8004028.476 | E46: =+"(Flussi in uscita/M.d.C.% = "&TEXT(D38,"0,00%")&")" -> (Flussi in uscita/M.d.C.% = 8,90%)
K47: Fatturato | L47: =+D46*D36 -> 6403222.781 | M47: =+L47/$L$49 -> 0.8
B48: Fase 5 | K48: Delta PF | L48: =+D46*D37 -> 1600805.695 | M48: =+L48/$L$49 -> 0.2
B49: Stima CCNC Attivo | C49: Acquisti M.P. Giornalieri | D49: =+I49+I50 -> 16883.277 | F49: Acquisto per produrre ciò che vendo | I49: =+(D46*D36*(E19+E22))/360 -> 13212.99939 | K49: VDP | L49: =SUM(L47:L48) -> 8004028.476 | M49: 1
C50: Magazzino MP | D50: =+D49*E50 -> 759747.4649 | E50: 45 | F50: Acquisto per produrre ciò che lascio a magazzino PF | I50: =+(D46*D37*(E29+E31))/360 -> 3670.277608
C52: Costo del Venduto Giornaliero | D52: =(+D46*D36*(E19+E22+E20)+D46*D37*(E29+E30+E31)+D15+E5)/360 -> 20238.75483
C53: Magazzino PF | D53: =+E53*D52 -> 607162.6448 | E53: 30 | F53: gg
C55: Fatturato Giornaliero | E55: Fatturato/270 | H55: Fatturato | I55: =+I57-I56 -> 7396865.831 | J55: =+I55/I57 -> 0.924142868
C56: Crediti V/Clienti | E56: 90 | F56: gg | H56: Variaz. PF | I56: =+D53 -> 607162.6448 | J56: =1-J55 -> 0.07585713202
H57: VDP | I57: =+D46 -> 8004028.476
C58: Acquisti Giornalieri | E58: Materia prima + manutenzioni
B59: Stima CCNC Passivo | C59: Debiti V/Fornitori | E59: 90 | F59: gg
C61: CCNC | D61: =+D56+D50+D53-D59 -> 1366910.11

Sheet IVA
B1: Sviluppo IVA mensile
B2: Aliquota Iva in vigore | C2: 0.22
B3: Iva su Investimenti | D3: a Credito
C5: 1 | D5: 2 | E5: 3 | F5: 4 | G5: 5 | H5: 6 | I5: 7 | J5: 8 | K5: 9 | L5: 10 | M5: 11 | N5: 12
B7: Credito | C7: =+D33+D39 -> 154865.7387 | D7: =+D33 -> -12278.70352 | E7: =+D7 -> -12278.70352 | F7: =+E7+D37 -> -12278.70352 | G7: =+F7 -> -12278.70352 | H7: -12278.70352 | I7: -12278.70352 | J7: -12278.70352 | K7: -12278.70352 | L7: -12278.70352 | M7: -12278.70352 | N7: -12278.70352
B8: Credito Iva Investimenti
B9: Credito Iva costituzione magazzino MP
B10: Credito IVA acquisti ricorrenti
B11: Credito IVA provvigioni
B13: Debito IVA
B15: SALDO IVA
E16: Picco del credito Iva | H16: Picco del cap. circolante
B18: IVA Fatturato | C18: Fatturato | D18: =+'Fase 7 - 7c-d'!D3 -> 0
C19: Fatturato/9 | D19: =+D18/9 -> 0 | E19: (Le vendite partono in differita)
C20: =+"Fatturato/9*"&C2 -> Fatturato/9*0,22 | D20: =+D19*C2 -> 0
B22: IVA Costi Variabili | C22: Utenze | D22: =+'Fasi 1-5'!D11 -> 10000
C23: Manutenzioni | D23: =+'Fasi 1-5'!D12 -> 50000
C24: Consulenze | D24: =+'Fasi 1-5'!D14 -> 30000
B26: IVA Costi Fissi | C26: Costo del Filato | D26: =-'Fase 7 - 7c-d'!D7 -> 0
C27: Costo dell'energia | D27: =-'Fase 7 - 7c-d'!D8 -> 0
C28: Imballaggi | D28: =-'Fase 7 - 7c-d'!D10 -> 0
C29: Acquisti per magazzino M.P. | D29: =+'Fasi 1-5'!D50 -> 759747.4649 | E29: (Immediati)
C31: Totale (netto magazzino M.P.) | D31: =SUM(D22:D28)-D29 -> -669747.4649
C32: Totale/12 | D32: =+D31/12 -> -55812.28874
C33: =+"Totale/12*"&C2 -> Totale/12*0,22 | D33: =+D32*C2 -> -12278.70352
C35: Provvigioni | D35: =-'Fase 7 - 7c-d'!D9 -> 0
C36: Provvigioni/9 | D36: =+D35/9 -> 0 | E36: (su nove mesi! Seguono il fatturato)
C37: Provvigioni/9*0,22 | D37: =+D36*C2 -> 0
C39: Iva su Acquisto magazzino M.P. | D39: =+D29*C2 -> 167144.4423 | E39: (caricata su mese 1)

Sheet Fase 6 Budget di Cassa
B2: 1 | C2: 2 | D2: 3 | E2: 4 | F2: 5 | G2: 6 | H2: 7 | I2: 8 | J2: 9 | K2: 10 | L2: 11 | M2: 12 | N2: TOTALE | O2: TOTALE SENZA IVA (OVE APPLICABILE)
A3: Entrate
A4: Incassi Vendite (iva inclusa) | N4: =SUM(B4:M4) -> 0 | O4: =+N4/(1+IVA!$C$2) -> 0
A5: Equity Capital | N5: =SUM(B5:M5) -> 0 | O5: =+N5 -> 0
A6: Finanziamento Investimenti | N6: 0 | O6: =+N6 -> 0
A7: Totale Entrate | B7: =SUM(B4:B6) -> 0 | C7: =SUM(C4:C6) -> 0 | D7: 0 | E7: 0 | F7: 0 | G7: 0 | H7: 0 | I7: 0 | J7: 0 | K7: 0 | L7: 0 | M7: 0 | N7: 0 | O7: 0
A9: Uscite | N9: =SUM(B9:M9) -> 0 | O9: =+N9/(1+IVA!$C$2) -> 0
A10: Investimenti | N10: 0 | O10: =+N10/(1+IVA!$C$2) -> 0
A11: Finanziamento quota Capitale | N11: 0 | O11: =+N11 -> 0
A12: Finanziamento quota Interessi | N12: 0 | O12: =+N12 -> 0
A13: Interessi su PFN a breve | M13: =+'Fase 7b'!C27 -> 0 | N13: 0 | O13: =+N13 -> 0
N14: 0 | O14: =+N14/(1+IVA!$C$2) -> 0
A15: =+'Fasi 1-5'!C10 -> Costo del lavoro | N15: 0 | O15: =+N15 -> 0
A16: =+'Fasi 1-5'!C11 -> Utenze | N16: 0 | O16: =+N16/(1+IVA!$C$2) -> 0
A17: =+'Fasi 1-5'!C12 -> Manutenzioni | N17: 0 | O17: =+N17/(1+IVA!$C$2) -> 0
A18: =+'Fasi 1-5'!C13 -> Assicurazioni | N18: 0 | O18: =+N18 -> 0
A19: =+'Fasi 1-5'!C14 -> Consulenze | N19: 0 | O19: =+N19/(1+IVA!$C$2) -> 0
N20: 0 | O20: =+N20/(1+IVA!$C$2) -> 0
A21: =+'Fasi 1-5'!C19 -> Costo del Filato | N21: =SUM(C21:M21) -> 0 | O21: =+N21/(1+IVA!$C$2) -> 0
A22: =+'Fasi 1-5'!C20 -> Costo dell'energia | N22: 0 | O22: =+N22/(1+IVA!$C$2) -> 0
A23: =+'Fasi 1-5'!C21 -> Provvigioni | N23: 0 | O23: =+N23/(1+IVA!$C$2) -> 0
A24: =+'Fasi 1-5'!C22 -> Imballaggi | N24: =SUM(C24:M24) -> 0 | O24: =+N24/(1+IVA!$C$2) -> 0
A25: =+IVA!C29 -> Acquisti per magazzino M.P. | N25: 0 | O25: =+N25/(1+IVA!$C$2) -> 0
A26: Totale Uscite | B26: =SUM(B10:B25) -> 0 | C26: =SUM(C10:C25) -> 0 | D26: 0 | E26: 0 | F26: 0 | G26: 0 | H26: 0 | I26: 0 | J26: 0 | K26: 0 | L26: 0 | M26: =SUM(M10:M25) -> 0 | N26: 0 | O26: =SUM(O10:O25) -> 0
A28: Saldo Entrate-Uscite | B28: =+B7-B26 -> 0 | C28: =+B28+C7-C26 -> 0 | D28: 0 | E28: =+D28+E7-E26 -> 0 | F28: 0 | G28: 0 | H28: 0 | I28: 0 | J28: 0 | K28: 0 | L28: 0 | M28: 0 | N28: =+N7-N26 -> 0 | O28: =+O7-O26 -> 0
B30: =+IF(B28=MIN($B$28:$M$28),B28,0) -> 0 | C30: =+IF(C28=MIN($B$28:$M$28),C28,0) -> 0 | D30: 0 | E30: 0 | F30: 0 | G30: =+IF(G28=MIN($B$28:$M$28),G28,0) -> 0 | H30: 0 | I30: 0 | J30: 0 | K30: 0 | L30: 0 | M30: 0
B31: =+IF(B30<>0,"Picco esigenze di liquidità","") ->  | C31: =+IF(C30<>0,"Picco esigenze di liquidità","") -> 
A33: Double Check Iva
A34: =+A10 -> Investimenti | B34: =+B10/(1+IVA!$C$2)*IVA!$C$2 -> 0 | C34: =+C10/(1+IVA!$C$2)*IVA!$C$2 -> 0 | D34: =+D10/(1+IVA!$C$2)*IVA!$C$2 -> 0 | E34: =+E10/(1+IVA!$C$2)*IVA!$C$2 -> 0 | F34: =+F10/(1+IVA!$C$2)*IVA!$C$2 -> 0 | G34: =+G10/(1+IVA!$C$2)*IVA!$C$2 -> 0 | H34: =+H10/(1+IVA!$C$2)*IVA!$C$2 -> 0 | I34: =+I10/(1+IVA!$C$2)*IVA!$C$2 -> 0 | J34: =+J10/(1+IVA!$C$2)*IVA!$C$2 -> 0 | K34: =+K10/(1+IVA!$C$2)*IVA!$C$2 -> 0 | L34: =+L10/(1+IVA!$C$2)*IVA!$C$2 -> 0 | M34: =+M10/(1+IVA!$C$2)*IVA!$C$2 -> 0
A35: =+A11 -> Finanziamento quota Capitale
A36: =+A12 -> Finanziamento quota Interessi
A37: =+A13 -> Interessi su PFN a breve
A39: =+A15 -> Costo del lavoro
A40: =+A16 -> Utenze | B40: =+B16/(1+IVA!$C$2)*IVA!$C$2 -> 0 | C40: =+C16/(1+IVA!$C$2)*IVA!$C$2 -> 0 | D40: =+D16/(1+IVA!$C$2)*IVA!$C$2 -> 0 | E40: =+E16/(1+IVA!$C$2)*IVA!$C$2 -> 0 | F40: =+F16/(1+IVA!$C$2)*IVA!$C$2 -> 0 | G40: =+G16/(1+IVA!$C$2)*IVA!$C$2 -> 0 | H40: =+H16/(1+IVA!$C$2)*IVA!$C$2 -> 0 | I40: =+I16/(1+IVA!$C$2)*IVA!$C$2 -> 0 | J40: =+J16/(1+IVA!$C$2)*IVA!$C$2 -> 0 | K40: =+K16/(1+IVA!$C$2)*IVA!$C$2 -> 0 | L40: =+L16/(1+IVA!$C$2)*IVA!$C$2 -> 0 | M40: =+M16/(1+IVA!$C$2)*IVA!$C$2 -> 0
A41: =+A17 -> Manutenzioni | B41: =+E17/(1+IVA!$C$2)*IVA!$C$2 -> 0 | C41: =+F17/(1+IVA!$C$2)*IVA!$C$2 -> 0 | D41: =+G17/(1+IVA!$C$2)*IVA!$C$2 -> 0 | E41: =+H17/(1+IVA!$C$2)*IVA!$C$2 -> 0 | F41: =+I17/(1+IVA!$C$2)*IVA!$C$2 -> 0 | G41: =+J17/(1+IVA!$C$2)*IVA!$C$2 -> 0 | H41: =+K17/(1+IVA!$C$2)*IVA!$C$2 -> 0 | I41: =+L17/(1+IVA!$C$2)*IVA!$C$2 -> 0 | J41: =+M17/(1+IVA!$C$2)*IVA!$C$2 -> 0 | K41: =+J41 -> 0 | L41: =+K41 -> 0 | M41: =+L41 -> 0
A42: =+A18 -> Assicurazioni
A43: =+A19 -> Consulenze | B43: =+B19/(1+IVA!$C$2)*IVA!$C$2 -> 0 | C43: =+C19/(1+IVA!$C$2)*IVA!$C$2 -> 0 | D43: =+D19/(1+IVA!$C$2)*IVA!$C$2 -> 0 | E43: =+E19/(1+IVA!$C$2)*IVA!$C$2 -> 0 | F43: =+F19/(1+IVA!$C$2)*IVA!$C$2 -> 0 | G43: =+G19/(1+IVA!$C$2)*IVA!$C$2 -> 0 | H43: =+H19/(1+IVA!$C$2)*IVA!$C$2 -> 0 | I43: =+I19/(1+IVA!$C$2)*IVA!$C$2 -> 0 | J43: =+J19/(1+IVA!$C$2)*IVA!$C$2 -> 0 | K43: =+K19/(1+IVA!$C$2)*IVA!$C$2 -> 0 | L43: =+L19/(1+IVA!$C$2)*IVA!$C$2 -> 0 | M43: =+M19/(1+IVA!$C$2)*IVA!$C$2 -> 0
A45: =+A21 -> Costo del Filato | B45: =+E21/(1+IVA!$C$2)*IVA!$C$2 -> 0 | C45: =+F21/(1+IVA!$C$2)*IVA!$C$2 -> 0 | D45: =+G21/(1+IVA!$C$2)*IVA!$C$2 -> 0 | E45: =+H21/(1+IVA!$C$2)*IVA!$C$2 -> 0 | F45: =+I21/(1+IVA!$C$2)*IVA!$C$2 -> 0 | G45: =+J21/(1+IVA!$C$2)*IVA!$C$2 -> 0 | H45: =+K21/(1+IVA!$C$2)*IVA!$C$2 -> 0 | I45: =+L21/(1+IVA!$C$2)*IVA!$C$2 -> 0 | J45: =+M21/(1+IVA!$C$2)*IVA!$C$2 -> 0 | K45: =+J45 -> 0 | L45: =+K45 -> 0 | M45: =+L45 -> 0
A46: =+A22 -> Costo dell'energia | B46: =+B22/(1+IVA!$C$2)*IVA!$C$2 -> 0 | C46: =+C22/(1+IVA!$C$2)*IVA!$C$2 -> 0 | D46: =+D22/(1+IVA!$C$2)*IVA!$C$2 -> 0 | E46: =+E22/(1+IVA!$C$2)*IVA!$C$2 -> 0 | F46: =+F22/(1+IVA!$C$2)*IVA!$C$2 -> 0 | G46: =+G22/(1+IVA!$C$2)*IVA!$C$2 -> 0 | H46: =+H22/(1+IVA!$C$2)*IVA!$C$2 -> 0 | I46: =+I22/(1+IVA!$C$2)*IVA!$C$2 -> 0 | J46: =+J22/(1+IVA!$C$2)*IVA!$C$2 -> 0 | K46: =+K22/(1+IVA!$C$2)*IVA!$C$2 -> 0 | L46: =+L22/(1+IVA!$C$2)*IVA!$C$2 -> 0 | M46: =+M22/(1+IVA!$C$2)*IVA!$C$2 -> 0
A47: =+A23 -> Provvigioni | B47: =+B23/(1+IVA!$C$2)*IVA!$C$2 -> 0 | C47: =+C23/(1+IVA!$C$2)*IVA!$C$2 -> 0 | D47: =+D23/(1+IVA!$C$2)*IVA!$C$2 -> 0 | E47: =+E23/(1+IVA!$C$2)*IVA!$C$2 -> 0 | F47: =+F23/(1+IVA!$C$2)*IVA!$C$2 -> 0 | G47: =+G23/(1+IVA!$C$2)*IVA!$C$2 -> 0 | H47: =+H23/(1+IVA!$C$2)*IVA!$C$2 -> 0 | I47: =+I23/(1+IVA!$C$2)*IVA!$C$2 -> 0 | J47: =+J23/(1+IVA!$C$2)*IVA!$C$2 -> 0 | K47: =+K23/(1+IVA!$C$2)*IVA!$C$2 -> 0 | L47: =+L23/(1+IVA!$C$2)*IVA!$C$2 -> 0 | M47: =+M23/(1+IVA!$C$2)*IVA!$C$2 -> 0
A48: =+A24 -> Imballaggi | B48: =+E24/(1+IVA!$C$2)*IVA!$C$2 -> 0 | C48: =+F24/(1+IVA!$C$2)*IVA!$C$2 -> 0 | D48: =+G24/(1+IVA!$C$2)*IVA!$C$2 -> 0 | E48: =+H24/(1+IVA!$C$2)*IVA!$C$2 -> 0 | F48: =+I24/(1+IVA!$C$2)*IVA!$C$2 -> 0 | G48: =+J24/(1+IVA!$C$2)*IVA!$C$2 -> 0 | H48: =+K24/(1+IVA!$C$2)*IVA!$C$2 -> 0 | I48: =+L24/(1+IVA!$C$2)*IVA!$C$2 -> 0 | J48: =+M24/(1+IVA!$C$2)*IVA!$C$2 -> 0 | K48: =+J48 -> 0 | L48: 0 | M48: 0
A49: =+A25 -> Acquisti per magazzino M.P. | B49: =+E25/(1+IVA!$C$2)*IVA!$C$2 -> 0 | C49: =+F25/(1+IVA!$C$2)*IVA!$C$2 -> 0 | D49: =+G25/(1+IVA!$C$2)*IVA!$C$2 -> 0 | E49: =+H25/(1+IVA!$C$2)*IVA!$C$2 -> 0 | F49: =+I25/(1+IVA!$C$2)*IVA!$C$2 -> 0 | G49: =+J25/(1+IVA!$C$2)*IVA!$C$2 -> 0 | H49: =+K25/(1+IVA!$C$2)*IVA!$C$2 -> 0 | I49: =+L25/(1+IVA!$C$2)*IVA!$C$2 -> 0 | J49: =+M25/(1+IVA!$C$2)*IVA!$C$2 -> 0 | K49: 0 | L49: 0 | M49: 0
A51: Tot. Iva a Credito | B51: =SUM(B34:B49) -> 0 | C51: =+B51+SUM(C34:C49) -> 0 | D51: =+C51+SUM(D34:D49) -> 0 | E51: 0 | F51: 0 | G51: 0 | H51: 0 | I51: 0 | J51: 0 | K51: 0 | L51: 0 | M51: 0
A53: Iva a Debito
A54: =+A4 -> Incassi Vendite (iva inclusa) | E54: =+H4/(1+IVA!$C$2)*IVA!$C$2 -> 0 | F54: =+I4/(1+IVA!$C$2)*IVA!$C$2 -> 0 | G54: =+J4/(1+IVA!$C$2)*IVA!$C$2 -> 0 | H54: =+K4/(1+IVA!$C$2)*IVA!$C$2 -> 0 | I54: =+L4/(1+IVA!$C$2)*IVA!$C$2 -> 0 | J54: =+M4/(1+IVA!$C$2)*IVA!$C$2 -> 0 | K54: =+J54 -> 0 | L54: =+K54 -> 0 | M54: =+L54 -> 0
A56: Tot. Iva a Debito | E56: =+E54 -> 0 | F56: =+E56+F54 -> 0 | G56: =+F56+G54 -> 0 | H56: =+G56+H54 -> 0 | I56: 0 | J56: 0 | K56: 0 | L56: 0 | M56: 0
A58: SALDO IVA | B58: =+B51-B56 -> 0 | C58: =+C51-C56 -> 0 | D58: 0 | E58: 0 | F58: 0 | G58: 0 | H58: 0 | I58: 0 | J58: 0 | K58: 0 | L58: 0 | M58: 0

Sheet Fase 6 CE (hidden)
B1: Fase 6 | C1: Conto Economico al Momento 0 | F1: Mesi dallo start up
F2: 6
C3: Fatturato | D3: =+IVA!D19*('Fase 6 CE'!F2-3) -> 0
C4: Variazione Magazzino P.F. | D4: =+'Fasi 1-5'!D53 -> 607162.6448
C5: Valore della Produzione | D5: =+D3+D4 -> 607162.6448
C7: =+'Fasi 1-5'!C19 -> Costo del Filato | D7: =-'Fase 6 Budget di Cassa'!E21*'Fase 6 CE'!F2/(1+IVA!C2)-IVA!D29*'Fasi 1-5'!F29 -> -730526.4085
C8: =+'Fasi 1-5'!C20 -> Costo dell'energia | D8: =-'Fase 6 Budget di Cassa'!B22*'Fase 6 CE'!F2/(1+IVA!C2) -> 0
C9: =+'Fasi 1-5'!C21 -> Provvigioni | D9: =-'Fase 6 Budget di Cassa'!E23*('Fase 6 CE'!F2-3)/(1+IVA!C2) -> 0
C10: =+'Fasi 1-5'!C22 -> Imballaggi | D10: =-'Fase 6 Budget di Cassa'!E24*'Fase 6 CE'!F2/(1+IVA!C2)-'Fasi 1-5'!F31*IVA!D29 -> -29221.05634
C11: Variazione Magazzino M.P. | D11: =+IVA!D29 -> 759747.4649
C12: Costi Variabili | D12: =SUM(D7:D11) -> 0
C13: =+'Fasi 1-5'!C10 -> Costo del lavoro | D13: =-'Fase 6 Budget di Cassa'!B15*F2 -> 0
C14: =+'Fasi 1-5'!C11 -> Utenze | D14: =-'Fase 6 Budget di Cassa'!B16*F2/(1+IVA!C2) -> 0
C15: =+'Fasi 1-5'!C12 -> Manutenzioni | D15: =-'Fase 6 Budget di Cassa'!E17/(1+IVA!C2)*F2 -> 0
C16: =+'Fasi 1-5'!C13 -> Assicurazioni | D16: =-'Fase 6 Budget di Cassa'!B18*F2 -> 0
C17: =+'Fasi 1-5'!C14 -> Consulenze | D17: =-'Fase 6 Budget di Cassa'!B19*F2/(1+IVA!C2) -> 0
C18: Costi Fissi | D18: =SUM(D13:D17) -> 0
C19: EBITDA/MOL | D19: =+D3+D12+D18+D4 -> 607162.6448
C20: Ammortamenti | D20: =-'Fasi 1-5'!E5/12*F2 -> -95833.33333
C21: EBIT/Red.Operativo | D21: =+D19+D20 -> 511329.3115
C22: Interessi passivi a lungo | D22: =+'Fasi 1-5'!F7/12*F2 -> -57500
B25: Fase 7b | C25: Interessi passivi a breve | D25: 0 | E25: 0.05 | F25: su PFN a Breve Iniziale
C26: Utile Ante Imposte | D26: =+D21+D22+D25 -> 453829.3115
B29: Fase 7c | C29: Imposte | F29: IRES | G29: 0.24
C30: Utile Netto | D30: =+D26+D29 -> 453829.3115 | F30: IRAP | G30: 0.039

Sheet Fase 6 SP (hidden)
B1: Fase 6 | C1: Investimenti e Coperture al Momento 0
C3: Attivo Immobilizzato | D3: =SUM(D4:D6) -> 2204166.667 | F3: Posizione Finanziaria Netta | G3: =SUM(G4:G5) -> 
C4: =+'Fasi 1-5'!C2 -> Brevetti | D4: =+'Fasi 1-5'!D2-'Fasi 1-5'!E2/12*'Fase 6 CE'!F2 -> 487500 | F4: Pos. Finanziaria Netta a M/L | G4: =+'Fasi 1-5'!D5-('Fase 6 Budget di Cassa'!B11*'Fase 6 CE'!F2) -> 2300000
C5: =+'Fasi 1-5'!C3 -> Impianti | D5: =+'Fasi 1-5'!D3-('Fasi 1-5'!E3/12*'Fase 6 CE'!F2) -> 950000 | F5: Pos. Finanziaria Netta a Breve | G5: =+D15-G4-G11 -> 
C6: =+'Fasi 1-5'!C4 -> Attrezzature | D6: =+'Fasi 1-5'!D4-('Fasi 1-5'!E4/12*'Fase 6 CE'!F2) -> 766666.6667
C8: Capitale Circolante | D8: =SUM(D9:D13) ->  | F8: Posizione Tributaria Netta | G8: 0
C9: =+'Fasi 1-5'!C56 -> Crediti V/Clienti | D9: =+'Fasi 1-5'!D56 -> 0
C10: =+'Fasi 1-5'!C50 -> Magazzino MP | D10: =+'Fasi 1-5'!D50 -> 759747.4649
C11: =+'Fasi 1-5'!C53 -> Magazzino PF | D11: =+'Fasi 1-5'!D53 -> 607162.6448 | F11: Mezzi Propri | G11: =+G12+G13 -> 953829.3115
C12: Credito Iva | D12: =+IVA!#REF! ->  | F12: Equity | G12: 500000
C13: =+'Fasi 1-5'!C59 -> Debiti V/Fornitori | D13: =-'Fasi 1-5'!D59 -> 0 | F13: Utile dell'esercizio | G13: =+'Fase 6 CE'!D30 -> 453829.3115
C15: Totale Investimenti | D15: =+D3+D8 ->  | F15: Totale Coperture | G15: =+G5+G11+G4 -> 

Sheet Fase 7 - 7c-d
B1: Fase 7a | C1: Conto Economico al Momento 1
C3: Fatturato
C4: Variazione Magazzino P.F.
C5: Valore della Produzione | D5: =+D3+D4 -> 0
C7: =+'Fasi 1-5'!C19 -> Costo del Filato | E7: <---Acquisto il filato sia per la vendita, che per il magazzino PF che per il magazzino MP
C8: =+'Fasi 1-5'!C20 -> Costo dell'energia
C9: =+'Fasi 1-5'!C21 -> Provvigioni
C10: =+'Fasi 1-5'!C22 -> Imballaggi | E10: <---Acquisto gli imballaggi sia per la vendita, che per il magazzino PF che per il magazzino MP
C11: Variazione Magazzino M.P.
C12: Costi Variabili | D12: =SUM(D7:D11) -> 0
C13: =+'Fasi 1-5'!C10 -> Costo del lavoro
C14: =+'Fasi 1-5'!C11 -> Utenze
C15: =+'Fasi 1-5'!C12 -> Manutenzioni
C16: =+'Fasi 1-5'!C13 -> Assicurazioni
C17: =+'Fasi 1-5'!C14 -> Consulenze
C18: Costi Fissi | D18: =SUM(D13:D17) -> 0
C19: EBITDA/MOL | D19: =+D3+D12+D18+D4 -> 0
C20: Ammortamenti
C21: EBIT/Red.Operativo | D21: =+D19+D20 -> 0
C22: Interessi passivi a lungo
B25: Fase 7b | C25: Interessi passivi a breve | E25: 0.05 | F25: 5% PFN a breve
C26: Utile Ante Imposte | D26: =+D21+D22+D25 -> 0
B29: Fase 7c | C29: Imposte
C30: Utile Netto | D30: =+D26+D29 -> 0

Sheet Fase 7b
B3: Proxy PFN Finale
A4: 1 | B4: PFN Iniziale | C4: 0
B6: Flussi di Cassa
B7: Mol
B8: CCNC Iniziale
B9: CCNC Finale
B10: Delta CCNC
A11: A | B11: Cash Flow operativo | C11: =+C7+C10 -> 0
B12: Ammortamenti
B13: Investimenti Netti Iniziali
B14: Investimenti Netti Finali
B15: Delta Investimenti
A16: B | B16: Flusso per Investimenti | C16: =+C15+C12 -> 0
B17: Flusso per Debito a Medio Lungo
B18: Erogazioni a medio lungo
A19: C | B19: Flusso netto debito a M/L | C19: =+C17+C18 -> 0
A20: D | B20: Cash Flow Fiscale
A21: E | B21: Flusso Equity | C21: 500000
A23: 2 = A+B+C+D+E | B23: Flussi in uscita | C23: =+C11+C16+C19+C20+C21 -> 500000
A25: 1+2 | B25: PFN a Breve Finale pre Oneri Finanziari | C25: =+C4-C23 -> -500000
B27: Oneri Finanziari | D27: 0.05
B29: PFN a Breve Finale post Oneri Finanziari | C29: =+C25+C27 -> -500000

Sheet Fase 8
B1: Fase 8 | C1: Investimenti e Coperture al Momento 1
C3: Attivo Immobilizzato | D3: =+SUM(D4:D6) -> 0 | F3: Posizione Finanziaria Netta | G3: =SUM(G4:G5) -> 0
B4: Fasi 1-5 | C4: =+'Fase 6 SP'!C4 -> Brevetti | F4: Pos. Finanziaria Netta a M/L | H4: Fasi 1-5
B5: Fasi 1-5 | C5: =+'Fase 6 SP'!C5 -> Impianti | F5: Pos. Finanziaria Netta a Breve | H5: Proxy PFN
B6: Fasi 1-5 | C6: =+'Fase 6 SP'!C6 -> Attrezzature
C8: =+'Fase 6 SP'!C8 -> Capitale Circolante | D8: =SUM(D9:D13) -> 0 | F8: Posizione Tributaria Netta | G8: =-'Fase 7 - 7c-d'!D29 -> 0 | H8: CE
B9: Fasi 1-5 | C9: =+'Fase 6 SP'!C9 -> Crediti V/Clienti
B10: Fasi 1-5 | C10: =+'Fase 6 SP'!C10 -> Magazzino MP | F10: Mezzi Propri | G10: =+G11+G12 -> 0
B11: Fasi 1-5 | C11: =+'Fase 6 SP'!C11 -> Magazzino PF | F11: Equity
B12: IVA | C12: Credito Iva | F12: Utile dell'esercizio | G12: =+'Fase 7 - 7c-d'!D30 -> 0 | H12: CE
B13: Fasi 1-5 | C13: =+'Fase 6 SP'!C13 -> Debiti V/Fornitori
C14: Totale Investimenti | D14: =+D3+D8 -> 0 | F14: Totale Coperture | G14: =+G8+G10+G3 -> 0
G16: =+D14-G14 -> 0

Sheet Fase 9
B1: Fase 9 | C1: Rendiconto Finanziario (Determ. Cash Flow)
D2: Anno 1
C4: EBITDA/M.O.L.
C5: CCNC Iniziale
C6: CCNC Finale
C7: Variazione Circolante
C9: CASH FLOW OPERATIVO
C11: Ammortamenti
C12: Investimenti Iniziali
C13: Investimenti Finali
C14: Investimenti a patrimonio
C15: Flusso di Cassa per investimenti
C17: CASH FLOW DISPONIBILE
C19: Interessi Passivi netti
C20: PFN Iniziale
C21: PFN Finale
C22: Variazione dell'indebitamento finanziario
C23: Cash Flow per il servizio del debito
C25: Imposte d'esercizio
C26: PTN Iniziale
C27: PTN Finale
C28: Variazione debiti fiscali
C29: Cash Flow Fiscale
C31: Utile
C32: Equity Iniziale
C33: Equity Finale
C34: Variazione dei mezzi propri
C35: CASH FLOW DALLA PROPRIETA' | D35: =D34-D31 -> 0

Sheet Fase 10
B2: Fase 10 | C2: MdC | D2: =+'Fasi 1-5'!D38 -> 0.08901587302
C3: Costi Fissi Operativi | D3: =+'Fasi 1-5'!D40 -> 315000
C4: Valore della Produzione | D4: =+'Fasi 1-5'!D46 -> 8004028.476
C5: Interessi Passivi | D5: =+'Fase 7 - 7c-d'!D22+'Fase 7 - 7c-d'!D25 -> 0
C6: PFN | D6: =+'Fase 8'!G3 -> 0
